bitfinex/quotes_SOLUSD_20240625
["timestamp","ask_amount","ask_price","bid_price","bid_amount"]
[1719336406419,20.3533926,138.56,138.51,7.2195]
[1719336407041,20.3533926,138.56,138.54,7.2181]
[1719336407217,0.3533926,138.56,138.53,7.2184]
[1719336408226,0.3533926,138.56,138.54,7.2177]
[1719336409520,0.3533926,138.56,138.53,7.2184]
[1719336411007,0.3533926,138.56,138.52,7.219]
[1719336411204,0.3533926,138.56,138.53,7.2185]
[1719336413927,0.3533926,138.56,138.52,7.2189]
[1719336414506,0.3533926,138.56,138.54,7.218]
[1719336415729,0.3533926,138.56,138.53,15.1085]
[1719336415908,0.3533926,138.56,138.53,7.2185]
[1719336416311,0.3533926,138.56,138.53,15.1085]
[1719336418706,0.3533926,138.56,138.52,7.219]
[1719336418920,0.3533926,138.56,138.52,15.109]
[1719336419638,0.3533926,138.56,138.5,15.0262]
[1719336419931,0.3533926,138.56,138.51,7.89]
[1719336420112,0.3533926,138.56,138.5,15.0262]
[1719336420308,8.2433926,138.56,138.51,7.89]
[1719336420515,0.3533926,138.56,138.48,16.3951]
[1719336420722,0.3533926,138.56,138.53,7.89]
[1719336422031,0.3533926,138.56,138.52,7.89]
[1719336424926,0.3533926,138.56,138.53,7.89]
[1719336425737,0.3533926,138.56,138.52,7.89]
[1719336426307,0.3533926,138.56,138.53,7.89]
[1719336426616,0.3533926,138.56,138.55,7.89]
[1719336427016,0.3533926,138.56,138.54,7.89]
[1719336427425,0.3533926,138.56,138.55,7.89]
[1719336427827,0.3533926,138.56,138.55,8.06]
[1719336428131,0.3533926,138.56,138.55,8.23]
[1719336429207,30.8673,138.65,138.55,8.23]
[1719336429208,16.3108,138.65,138.55,8.23]
[1719336429541,6.4976,138.68,138.55,8.23]
[1719336429542,14.3876,138.68,138.62,7.89]
[1719336430242,21.5985,138.68,138.56,0.34]
[1719336430409,21.5985,138.68,138.62,7.89]
[1719336430614,14.3876,138.68,138.62,7.89]
[1719336430841,6.4976,138.68,138.62,7.89]
[1719336431025,16.0353,138.69,138.58,6.1091]
[1719336431340,16.0353,138.69,138.6,15.5196]
[1719336431942,16.0353,138.69,138.6,23.4096]
[1719336432137,23.9253,138.69,138.6,47.0796]
[1719336432439,20.0,138.68,138.61,0.17]
[1719336433253,20.0,138.68,138.58,6.1091]
[1719336433548,15.1019,138.66,138.6,7.89]
[1719336433761,20.0,138.65,138.58,6.1091]
[1719336434041,20.0,138.65,138.62,7.89]
[1719336434460,20.0,138.66,138.62,7.89]
[1719336434649,20.0,138.66,138.58,6.1091]
[1719336434823,20.0,138.66,138.62,7.89]
[1719336436430,27.89,138.66,138.58,6.1091]
[1719336436618,27.89,138.66,138.57,15.5196]
[1719336436819,27.89,138.66,138.6,7.89]
[1719336437135,7.89,138.65,138.6,7.89]
[1719336437441,20.0,138.64,138.6,7.89]
[1719336437813,0.8533926,138.7,138.6,6.1545]
[1719336438031,8.7433926,138.7,138.64,7.89]
[1719336438565,7.89,138.69,138.64,7.89]
[1719336438724,8.7433926,138.7,138.64,7.89]
[1719336438930,7.89,138.69,138.64,7.89]
[1719336439128,0.8533926,138.7,138.68,7.89]
[1719336439351,0.8533926,138.7,138.69,7.89]
[1719336440216,0.8533926,138.7,138.67,31.56]
[1719336440438,0.8533926,138.7,138.69,7.89]
[1719336441735,0.8533926,138.7,138.68,7.89]
[1719336442119,0.8533926,138.7,138.69,7.89]
[1719336443016,0.8533926,138.7,138.65,7.89]
[1719336443327,0.8533926,138.7,138.63,16.1626]
[1719336443532,0.8533926,138.7,138.64,0.34]
[1719336444026,0.04286699,138.78,138.69,23.61]
[1719336444240,0.04286699,138.78,138.72,23.61]
[1719336444539,0.04286699,138.78,138.73,0.34]
[1719336445324,0.04286699,138.78,138.74,16.306]
[1719336445539,0.04286699,138.78,138.76,23.61]
[1719336446341,0.04286699,138.78,138.77,1.78046114]
[1719336446946,6.3829,138.88,138.77,1.78046114]
[1719336447148,6.0271,138.92,138.8,23.61]
[1719336447346,6.0271,138.92,138.82,6.1319]
[1719336447643,6.0271,138.92,138.82,6.4719]
[1719336448030,6.0271,138.92,138.82,6.3019]
[1719336448217,6.0271,138.92,138.82,2.79179783]
[1719336449130,13.2255,138.92,138.82,2.62179783]
[1719336449328,13.2255,138.92,138.8,2.45187645]
[1719336449329,7.1995,138.9,138.8,2.45187645]
[1719336449533,20.0,138.89,138.8,2.45187645]
[1719336449841,20.0,138.91,138.78,2.45187645]
[1719336450835,7.2,138.89,138.78,2.45187645]
[1719336451034,20.0,138.88,138.78,2.45187645]
[1719336451344,27.2007,138.88,138.78,2.45187645]
[1719336451531,6.1336,138.85,138.78,2.45187645]
[1719336451722,20.0,138.84,138.76,2.45187645]
[1719336452141,27.2025,138.84,138.76,2.45187645]
[1719336452342,8.0564926,138.83,138.73,23.61]
[1719336452523,20.0,138.82,138.74,2.45479875]
[1719336452948,0.8533926,138.83,138.74,2.45479875]
[1719336453735,2.3533926,138.83,138.73,23.61]
[1719336454334,9.5565926,138.83,138.73,23.61]
[1719336454553,20.0,138.82,138.73,23.61]
[1719336454745,1.5,138.81,138.73,23.61]
[1719336455831,2.3533926,138.83,138.73,23.61]
[1719336457251,9.5568926,138.83,138.73,23.61]
[1719336457430,20.0,138.82,138.73,23.61]
[1719336457636,1.5,138.81,138.73,23.61]
[1719336458451,21.5,138.81,138.73,23.61]
[1719336459859,1.5,138.81,138.73,23.61]
[1719336460344,2.3533926,138.83,138.73,23.61]
[1719336461138,7.2036,138.82,138.71,20.0]
[1719336461332,21.5,138.81,138.71,20.0]
[1719336461558,28.704,138.81,138.71,20.0]
[1719336462359,21.5,138.81,138.71,20.0]
[1719336462742,1.5,138.81,138.7,45.617]
[1719336462946,16.5712,138.8,138.7,45.617]
[1719336463148,21.5,138.79,138.7,45.617]
[1719336463466,6.2822,138.78,138.69,24.1389]
[1719336463755,6.2822,138.78,138.67,39.7164]
[1719336463756,21.5,138.77,138.67,39.7164]
[1719336463975,1.5,138.76,138.67,39.7164]
[1719336464757,6.2822,138.78,138.67,59.4764]
[1719336464961,1.5,138.79,138.7,23.61]
[1719336465154,21.5,138.79,138.71,0.17]
[1719336465672,21.5,138.79,138.71,0.34]
[1719336466862,21.5,138.79,138.7,23.61]
[1719336467062,21.5,138.79,138.69,0.17]
[1719336467247,21.5,138.79,138.68,0.17]
[1719336467674,21.5,138.79,138.69,23.7758]
[1719336468770,21.5,138.79,138.7,0.34]
[1719336469438,1.5,138.79,138.71,6.055]
[1719336469646,1.5,138.79,138.72,23.95]
[1719336469971,1.5,138.79,138.72,23.61]
[1719336470274,1.5,138.79,138.72,8.056692]
[1719336470443,28.7052,138.79,138.72,8.056692]
[1719336470647,15.1575,138.78,138.69,23.61]
[1719336470864,21.5,138.77,138.67,22.5772]
[1719336471052,1.5,138.76,138.67,22.5772]
[1719336472267,1.5,138.77,138.69,23.61]
[1719336472469,1.5,138.77,138.7,0.17]
[1719336472665,15.1575,138.78,138.7,0.17]
[1719336472880,15.1575,138.78,138.7,0.34]
[1719336473255,1.5,138.77,138.7,0.34]
[1719336473667,15.1575,138.78,138.7,0.34]
[1719336474387,1.5,138.77,138.7,0.34]
[1719336474752,15.1575,138.78,138.7,0.34]
[1719336474951,1.5,138.77,138.7,0.34]
[1719336475781,1.5,138.77,138.7,0.17]
[1719336476153,1.5,138.8,138.7,0.34]
[1719336476386,21.5,138.8,138.7,0.34]
[1719336476568,1.5,138.79,138.7,0.34]
[1719336476962,21.5,138.8,138.7,0.34]
[1719336477155,21.5,138.8,138.72,23.61]
[1719336477691,1.5,138.79,138.72,23.61]
[1719336481071,20.0,138.8,138.72,23.61]
[1719336481278,20.0,138.8,138.73,0.34]
[1719336481488,17.3573,138.81,138.73,0.34]
[1719336481717,17.3573,138.81,138.73,0.17]
[1719336481993,20.0,138.8,138.72,23.61]
[1719336482166,1.5,138.79,138.72,23.61]
[1719336483278,21.5,138.8,138.73,0.17]
[1719336484193,1.5,138.8,138.73,0.17]
[1719336485079,1.5,138.8,138.72,23.61]
[1719336485278,1.5,138.8,138.73,0.17]
[1719336485990,1.5,138.8,138.73,0.34]
[1719336486569,1.5,138.8,138.72,23.61]
[1719336489986,1.5,138.8,138.73,21.9076]
[1719336490303,2.3533926,138.83,138.75,23.61]
[1719336490504,2.3533926,138.83,138.76,0.17]
[1719336490877,2.3533926,138.83,138.75,23.61]
[1719336491080,0.8533926,138.83,138.75,23.61]
[1719336492715,0.8533926,138.83,138.76,0.34]
[1719336493090,2.3533926,138.83,138.76,0.34]
[1719336493783,2.3533926,138.83,138.75,23.61]
[1719336494310,2.3533926,138.83,138.76,0.34]
[1719336494311,0.8533926,138.83,138.76,0.34]
[1719336494697,0.8533926,138.83,138.77,22.2401]
[1719336495003,0.8533926,138.83,138.78,23.95]
[1719336496894,0.8533926,138.83,138.78,67.32]
[1719336497135,0.8533926,138.83,138.81,23.61]
[1719336497307,21.5,138.9,138.82,22.7877]
[1719336497508,22.3789,138.96,138.82,22.7877]
[1719336497509,7.1975,138.94,138.82,22.7877]
[1719336497707,21.5,138.93,138.82,22.7877]
[1719336498019,28.6979,138.93,138.82,22.7877]
[1719336498415,21.5,138.93,138.82,22.7877]
[1719336499523,1.5,138.93,138.84,23.61]
[1719336499733,1.5,138.93,138.85,0.34]
[1719336500412,1.5,138.95,138.85,0.34]
[1719336500614,8.6969,138.95,138.85,0.34]
[1719336501226,1.5,138.95,138.85,0.34]
[1719336501412,21.5,138.95,138.85,0.34]
[1719336503208,21.5,138.95,138.86,23.0069]
[1719336503401,21.5,138.96,138.86,23.0069]
[1719336503602,1.5,138.95,138.86,23.0069]
[1719336504330,1.5,138.95,138.87,0.17]
[1719336504704,1.5,138.95,138.86,23.0069]
[1719336505229,8.6969,138.95,138.86,23.0069]
[1719336505436,1.5,138.95,138.86,23.0069]
[1719336505721,21.5,138.95,138.86,23.0069]
[1719336507103,28.6968,138.95,138.86,23.0069]
[1719336507938,7.1987,138.92,138.86,23.0069]
[1719336508110,1.5,138.91,138.86,16.5929]
[1719336508948,7.1996,138.9,138.83,6.3156]
[1719336509241,7.1996,138.9,138.82,16.0939]
[1719336509242,8.6999,138.89,138.82,16.0939]
[1719336509406,1.5,138.88,138.82,16.0939]
[1719336509734,57.4438,138.94,138.82,16.0939]
[1719336509735,1.5,138.89,138.82,16.0939]
[1719336510813,28.698,138.93,138.82,16.0939]
[1719336511019,1.5,138.92,138.82,16.0939]
[1719336512323,1.5,138.92,138.83,0.17]
[1719336512732,8.6984,138.92,138.83,0.17]
[1719336512925,20.0,138.91,138.82,16.0939]
[1719336513134,1.5,138.9,138.82,16.0939]
[1719336516746,7.2004,138.88,138.82,16.0939]
[1719336517043,1.5,138.87,138.82,16.0939]
[1719336517721,8.7013,138.87,138.82,16.0939]
[1719336517920,1.5,138.86,138.82,16.0939]
[1719336518333,8.7016,138.86,138.82,16.0939]
[1719336518534,1.5,138.86,138.82,16.0939]
[1719336519043,1.5,138.87,138.82,16.0939]
[1719336519547,1.5,138.87,138.8,6.04]
[1719336519948,1.5,138.88,138.8,6.04]
[1719336520336,27.2002,138.89,138.81,1.50084054]
[1719336520638,7.2004,138.88,138.81,1.50084054]
[1719336520838,27.2001,138.89,138.81,1.50084054]
[1719336521038,20.0,138.89,138.81,1.50084054]
[1719336521255,27.2001,138.89,138.81,1.50084054]
[1719336522129,7.2006,138.88,138.81,1.50084054]
[1719336523756,27.2001,138.89,138.81,1.50084054]
[1719336524137,7.2016,138.86,138.79,15.0513]
[1719336525156,7.2011,138.87,138.79,15.0513]
[1719336525327,20.0,138.86,138.79,15.0513]
[1719336525944,7.2023,138.85,138.77,6.6143]
[1719336526149,20.0,138.84,138.77,6.6143]
[1719336526839,7.2029,138.84,138.76,15.2441]
[1719336527053,20.0,138.83,138.76,15.2441]
[1719336527754,27.203,138.83,138.76,15.2441]
[1719336528537,27.2031,138.83,138.76,15.2441]
[1719336528859,20.0,138.83,138.76,15.2441]
[1719336531562,27.203,138.83,138.76,15.2441]
[1719336533860,7.2036,138.82,138.76,15.2441]
[1719336534535,27.2032,138.83,138.76,15.2441]
[1719336535361,27.203,138.83,138.76,15.2441]
[1719336536164,20.0,138.83,138.76,15.2441]
[1719336536659,27.2031,138.83,138.76,15.2441]
[1719336537362,20.0,138.83,138.76,15.2441]
[1719336538057,27.2031,138.83,138.76,15.2441]
[1719336538658,7.2036,138.82,138.76,15.2441]
[1719336539160,27.2032,138.83,138.76,15.2441]
[1719336539664,7.2035,138.82,138.76,15.2441]
[1719336540065,7.2049,138.8,138.76,15.2441]
[1719336540360,7.2039,138.82,138.76,15.2441]
[1719336540659,20.0,138.83,138.76,15.2441]
[1719336540962,20.0,138.82,138.76,15.2441]
[1719336541555,20.0,138.84,138.76,15.2441]
[1719336541943,27.2026,138.84,138.76,15.2441]
[1719336542176,20.0,138.84,138.76,15.2441]
[1719336543446,20.0,138.85,138.76,15.2441]
[1719336543652,20.0,138.85,138.78,16.6076]
[1719336543865,20.0,138.9,138.78,16.6076]
[1719336544062,7.2008,138.88,138.78,16.6076]
[1719336544360,20.0,138.87,138.78,16.6076]
[1719336544837,20.0,138.9,138.78,16.6076]
[1719336545766,7.201,138.87,138.78,16.6076]
[1719336545946,20.0,138.86,138.78,16.6076]
[1719336546463,7.202,138.85,138.78,16.6076]
[1719336546972,27.2016,138.86,138.78,16.6076]
[1719336547262,7.202,138.85,138.78,16.6076]
[1719336548041,20.0,138.86,138.78,16.6076]
[1719336548242,20.0,138.88,138.78,16.6076]
[1719336548668,7.2023,138.85,138.78,16.6076]
[1719336548841,20.0,138.84,138.78,16.6076]
[1719336549668,20.0,138.85,138.78,16.6076]
[1719336551151,27.2021,138.85,138.78,16.6076]
[1719336551472,7.2029,138.84,138.78,16.6076]
[1719336551855,27.2021,138.85,138.78,16.6076]
[1719336552154,20.0,138.85,138.78,16.6076]
[1719336552347,7.2009,138.88,138.78,16.6076]
[1719336552670,27.2009,138.87,138.78,16.6076]
[1719336552995,20.0,138.86,138.78,16.6076]
[1719336553964,7.2024,138.85,138.78,16.6076]
[1719336554150,20.0,138.84,138.78,16.6076]
[1719336554351,20.0,138.86,138.78,16.6076]
[1719336555671,27.2016,138.86,138.78,16.6076]
[1719336555878,20.0,138.86,138.78,16.6076]
[1719336556369,27.201,138.87,138.78,16.6076]
[1719336557249,7.2016,138.86,138.78,16.6076]
[1719336558172,27.2022,138.85,138.78,16.6076]
[1719336558472,20.0,138.84,138.78,16.6076]
[1719336558676,27.86,138.84,138.79,7.86]
[1719336559372,20.0,138.84,138.8,7.86]
[1719336559676,7.2009,138.87,138.8,7.86]
[1719336559972,27.86,138.86,138.81,7.86]
[1719336560269,27.86,138.86,138.8,7.86]
[1719336560465,20.0,138.86,138.81,7.86]
[1719336560650,27.86,138.86,138.81,7.86]
[1719336561568,27.86,138.86,138.8,7.86]
[1719336561975,16.1437,138.92,138.78,16.6076]
[1719336562173,7.86,138.87,138.82,7.86]
[1719336562389,7.86,138.87,138.81,7.86]
[1719336562671,7.86,138.86,138.81,7.86]
[1719336562846,7.86,138.86,138.8,7.86]
[1719336564652,15.062,138.85,138.79,7.86]
[1719336564855,7.86,138.84,138.79,7.86]
[1719336565055,7.2016,138.86,138.79,7.86]
[1719336565256,7.86,138.85,138.79,7.86]
[1719336565671,7.86,138.86,138.8,7.86]
[1719336566575,7.2025,138.84,138.78,16.6076]
[1719336566754,7.86,138.82,138.78,16.6076]
[1719336571897,7.2012,138.87,138.78,16.6076]
[1719336572192,7.86,138.82,138.78,16.6076]
[1719336572753,7.86,138.81,138.78,16.6076]
[1719336578787,7.86,138.81,138.78,16.6076]
[1719336579184,7.86,138.8,138.75,15.8142]
[1719336580565,7.86,138.8,138.75,23.6742]
[1719336581893,7.86,138.81,138.75,23.6742]
[1719336582203,7.86,138.82,138.76,7.86]
[1719336582363,20.0,138.81,138.76,7.86]
[1719336585769,27.86,138.81,138.75,25.12697522]
[1719336586469,27.86,138.81,138.75,17.26697522]
[1719336586788,27.86,138.81,138.75,25.12697522]
[1719336586988,20.0,138.81,138.75,25.12697522]
[1719336587289,7.86,138.81,138.75,25.12697522]
[1719336587470,20.0,138.8,138.75,25.12697522]
[1719336587976,27.86,138.8,138.75,17.26697522]
[1719336588588,20.0,138.8,138.75,17.26697522]
[1719336588890,7.86,138.8,138.75,17.26697522]
[1719336590194,7.86,138.79,138.75,15.8142]
[1719336590872,7.86,138.8,138.75,15.8142]
[1719336591193,7.86,138.79,138.75,15.8142]
[1719336591670,7.86,138.77,138.75,15.8142]
[1719336591877,7.86,138.77,138.72,15.1223]
[1719336592588,7.2056,138.78,138.72,15.1223]
[1719336592897,7.86,138.76,138.72,15.1223]
[1719336593605,27.86,138.77,138.72,15.1223]
[1719336593803,7.86,138.76,138.72,15.1223]
[1719336594389,7.86,138.75,138.72,15.1223]
[1719336594705,7.86,138.76,138.72,15.1223]
[1719336595597,7.86,138.75,138.72,15.1223]
[1719336596577,7.86,138.76,138.72,15.1223]
[1719336598903,7.86,138.75,138.72,15.1223]
[1719336601014,20.0,138.77,138.72,15.1223]
[1719336601015,7.86,138.76,138.72,15.1223]
[1719336602305,7.86,138.75,138.72,15.1223]
[1719336602983,27.2061,138.77,138.72,15.1223]
[1719336602984,7.86,138.74,138.72,15.1223]
[1719336604609,7.86,138.74,138.69,23.1779]
[1719336604785,7.86,138.74,138.69,24.63301764]
[1719336604985,7.86,138.74,138.69,16.77301764]
[1719336606086,7.86,138.74,138.69,24.63301764]
[1719336607110,7.2036,138.82,138.73,23.927]
[1719336607402,7.86,138.8,138.74,1.4972135]
[1719336607618,7.86,138.79,138.74,9.3572135]
[1719336607806,16.5166,138.84,138.75,7.86]
[1719336608016,16.5166,138.84,138.76,9.3569977]
[1719336608017,7.86,138.81,138.76,9.3569977]
[1719336608303,7.86,138.81,138.76,1.4969977]
[1719336608521,7.86,138.8,138.75,7.78156728]
[1719336608899,7.2032,138.83,138.75,15.64156728]
[1719336609095,7.86,138.8,138.75,15.64156728]
[1719336609312,7.2016,138.86,138.77,7.86]
[1719336609611,7.86,138.82,138.78,15.4678]
[1719336609810,7.2022,138.85,138.78,15.4678]
[1719336610012,7.86,138.82,138.78,15.4678]
[1719336611186,7.86,138.81,138.78,15.4678]
[1719336611411,7.86,138.79,138.75,22.2743]
[1719336611591,7.86,138.79,138.75,23.77016896]
[1719336611790,27.86,138.8,138.75,23.77016896]
[1719336612089,27.86,138.8,138.75,22.2743]
[1719336612296,27.86,138.8,138.75,30.1343]
[1719336612899,27.86,138.8,138.75,22.2743]
[1719336613092,27.86,138.8,138.75,23.76987591]
[1719336613519,27.86,138.8,138.72,6.6414]
[1719336613520,20.0,138.8,138.72,6.6414]
[1719336613819,21.313,138.82,138.71,15.6247]
[1719336613820,7.86,138.74,138.71,15.6247]
[1719336614001,7.86,138.75,138.71,15.6247]
[1719336615210,7.86,138.74,138.71,15.6247]
[1719336618616,24.38175886,138.8,138.71,15.6247]
[1719336618617,7.86,138.73,138.71,15.6247]
[1719336618802,7.86,138.74,138.71,15.6247]
[1719336619203,7.86,138.73,138.71,15.6247]
[1719336619504,24.38175886,138.8,138.64,15.6247]
[1719336619505,206.36975886,138.8,138.67,15.6241]
[1719336619703,7.86,138.71,138.67,15.6241]
[1719336620918,27.86,138.7,138.67,15.6241]
[1719336621131,7.86,138.69,138.67,15.6241]
[1719336621644,7.86,138.69,138.57,43.37]
[1719336621645,7.86,138.68,138.63,15.6241]
[1719336621796,7.86,138.66,138.63,15.6241]
[1719336622713,7.86,138.67,138.63,15.6241]
[1719336622928,20.0,138.66,138.63,15.6241]
[1719336623131,27.86,138.66,138.63,15.6241]
[1719336623433,27.86,138.66,138.54,72.26377]
[1719336623434,7.86,138.64,138.56,16.415]
[1719336623598,7.2125,138.65,138.56,24.275]
[1719336623799,20.0,138.64,138.59,7.86]
[1719336624330,27.86,138.64,138.59,7.86]
[1719336624513,20.0,138.63,138.59,7.86]
[1719336624710,29.32604635,138.71,138.59,7.86]
[1719336624913,7.86,138.67,138.62,7.86]
[1719336625102,20.0,138.66,138.62,23.0817]
[1719336625303,27.86,138.66,138.62,15.2217]
[1719336626612,7.86,138.65,138.62,15.2217]
[1719336626808,7.86,138.63,138.58,16.2979]
[1719336627017,7.86,138.62,138.58,16.2979]
[1719336627215,20.0,138.66,138.58,16.2979]
[1719336627401,7.2127,138.65,138.58,16.2979]
[1719336627606,7.86,138.63,138.58,24.1579]
[1719336628002,27.212,138.66,138.58,24.1579]
[1719336628003,7.86,138.64,138.58,24.1579]
[1719336628220,20.0,138.63,138.58,24.1579]
[1719336628419,7.211,138.68,138.61,7.86]
[1719336628625,27.86,138.67,138.61,7.86]
[1719336629806,20.0,138.67,138.62,7.86]
[1719336630003,20.0,138.69,138.63,14.1778]
[1719336630210,7.2102,138.7,138.64,7.86]
[1719336630417,7.86,138.69,138.64,7.86]
[1719336630708,7.86,138.69,138.64,24.2468]
[1719336631618,15.0706,138.69,138.64,24.2468]
[1719336631825,7.86,138.68,138.64,16.3868]
[1719336632025,7.86,138.67,138.64,16.3868]
[1719336632415,7.86,138.65,138.59,7.86]
[1719336632931,282.7447,138.74,138.58,30.071]
[1719336632932,27.86,138.64,138.58,30.071]
[1719336633109,27.86,138.64,138.59,0.80268292]
[1719336633313,27.86,138.64,138.59,2.0544772]
[1719336633624,20.0,138.64,138.59,2.0544772]
[1719336633820,7.86,138.63,138.59,2.05396627]
[1719336634134,7.86,138.63,138.58,30.071]
[1719336634332,7.86,138.63,138.59,2.05426073]
[1719336634631,20.0,138.65,138.59,2.05426073]
[1719336634832,27.2124,138.65,138.58,22.211]
[1719336635028,7.213,138.64,138.58,22.211]
[1719336635216,20.0,138.63,138.58,22.211]
[1719336635420,27.2135,138.63,138.58,15.6422]
[1719336635835,20.0,138.63,138.58,15.6422]
[1719336636343,7.214,138.62,138.55,22.6959]
[1719336636509,20.0,138.61,138.55,22.6959]
[1719336637211,7.215,138.6,138.51,22.9242]
[1719336637411,43.65,138.62,138.51,22.9242]
[1719336637412,27.2156,138.59,138.51,22.9242]
[1719336637613,20.0,138.59,138.51,22.9242]
[1719336637829,20.0,138.61,138.51,22.9242]
[1719336638828,27.2147,138.61,138.51,22.9242]
[1719336639628,7.215,138.6,138.51,22.9242]
[1719336639938,27.2155,138.59,138.51,22.9242]
[1719336640447,7.216,138.58,138.51,22.9242]
[1719336640644,20.0,138.57,138.51,22.9242]
[1719336640941,20.0,138.59,138.51,22.9242]
[1719336641234,7.2162,138.58,138.51,22.9242]
[1719336641428,20.0,138.57,138.51,22.9242]
[1719336643344,20.0,138.57,138.49,0.8533926]
[1719336643345,7.2188,138.53,138.49,0.8533926]
[1719336643545,20.0,138.52,138.49,0.8533926]
[1719336645336,27.2191,138.52,138.49,0.8533926]
[1719336645734,7.2199,138.51,138.49,0.8533926]
[1719336646041,20.0,138.5,138.49,0.8533926]
[1719336647130,27.2202,138.5,138.49,0.8533926]
[1719336647445,20.0,138.5,138.49,0.8533926]
[1719336648430,27.2202,138.5,138.49,0.8533926]
[1719336649047,20.0,138.5,138.49,0.8533926]
[1719336650049,27.2202,138.5,138.49,0.8533926]
[1719336651043,20.0,138.5,138.49,0.8533926]
[1719336651753,27.2202,138.5,138.49,0.8533926]
[1719336657655,20.0,138.5,138.49,0.8533926]
[1719336658149,27.2202,138.5,138.49,0.8533926]
[1719336658858,27.9,138.5,138.49,0.8533926]
[1719336659633,35.1202,138.5,138.49,0.8533926]
[1719336659851,20.0,138.5,138.49,0.8533926]
[1719336660260,27.9,138.5,138.49,0.8533926]
[1719336660757,20.0,138.5,138.49,0.8533926]
[1719336661140,27.9,138.5,138.49,0.8533926]
[1719336661738,16.3121,138.55,138.49,0.8533926]
[1719336661937,27.2181,138.54,138.49,0.8533926]
[1719336662143,7.9,138.52,138.49,0.8533926]
[1719336662344,35.1201,138.51,138.49,0.8533926]
[1719336662657,27.9,138.51,138.49,0.8533926]
[1719336663073,15.1202,138.5,138.49,0.8533926]
[1719336663557,35.1202,138.5,138.49,0.8533926]
[1719336664442,20.0,138.5,138.49,0.8533926]
[1719336664746,27.9,138.5,138.49,0.8533926]
[1719336665481,35.1202,138.5,138.49,0.8533926]
[1719336668551,20.0,138.5,138.49,0.8533926]
[1719336668867,27.9,138.5,138.49,0.8533926]
[1719336669046,20.0,138.5,138.49,0.8533926]
[1719336671358,27.2202,138.5,138.49,0.8533926]
[1719336671561,27.9,138.5,138.49,0.8533926]
[1719336671767,35.1202,138.5,138.49,0.8533926]
[1719336673746,27.9,138.5,138.49,0.8533926]
[1719336674464,35.1202,138.5,138.49,0.8533926]
[1719336674669,27.2202,138.5,138.49,0.8533926]
[1719336676573,6.4879,138.56,138.49,0.8533926]
[1719336676877,20.0,138.55,138.49,16.6280926]
[1719336677044,20.0,138.57,138.49,17.75573787]
[1719336677556,7.218,138.55,138.49,16.6280926]
[1719336678145,7.2172,138.56,138.49,16.6280926]
[1719336678966,20.0,138.55,138.49,16.6280926]
[1719336679752,20.0,138.56,138.49,16.6280926]
[1719336679952,7.2179,138.55,138.49,16.6280926]
[1719336680469,20.0,138.54,138.49,16.6280926]
[1719336680664,20.0,138.56,138.49,16.6280926]
[1719336681163,7.2181,138.55,138.49,16.6280926]